Cogmind - Beta 13 @@@ ROGUE MODE // 2024.05.02 @ 16:51:03 Player: Barbarossa Result: Destroyed by G-34 Mercenary with Small Laser Performance ------------- Evolutions (1) 500 Regions Visited (3) 600 Robots Destroyed (21) 105 Value Destroyed (499) 499 Prototype IDs (0) 0 Alien Tech Used (0) 0 Bonus (-130) -130 TOTAL SCORE: 1574 Bonus ------- Friendly Fire -130 Cogmind --------- Core Integrity 0/400 Matter 187/300 Energy 89/100 System Corruption 0% Temperature Warm (117) Movement Treading (160) Location -9/Storage Parts ------- > --- POWER (1) -------- (None) > --- PROPULSION (4) --- Light Treads > --- UTILITY (2) ------ Small Storage Unit > --- WEAPON (2) ------- Small Laser > --- INVENTORY (8) ---- Light Ion Engine Light Treads Flight Unit Peak State ------------ > --- POWER ------------ Light Ion Engine > --- PROPULSION ------- Light Treads Light Treads Wheel Compact Wheel > --- UTILITY ---------- Small Storage Unit Drone Bay > --- WEAPON ----------- Beam Rifle Beam Rifle > --- INVENTORY -------- Ion Engine Light Ion Engine Flight Unit Small Laser Assault Rifle Assault Rifle [Rating: 15] Favorites ----------- Power Light Ion Engine Engine Light Ion Engine Propulsion Light Treads Treads Light Treads Leg Aluminum Leg Wheel Compact Wheel Hover Unit Hover Unit Utility Small Storage Unit Device Drone Bay Storage Small Storage Unit Weapon Assault Rifle Energy Gun Beam Rifle Ballistic Gun Assault Rifle Build | -11 -10 -9 -9 ------- Run | Yrd Mat Mat Sto Slots Evolved 2 | . . 2 . Power . | . . . . Propulsion 2 | . . 2 . Utility . | . . . . Weapon . | . . . . Parts Attached 16 | . 2 3 11 Power 1 | . . . 1 Engine 1 | . . . 1 Core . | . . . . Reactor . | . . . . Propulsion 8 | . 2 2 4 Treads 3 | . . 2 1 Leg . | . . . . Wheel 3 | . . . 3 Hover 2 | . 2 . . Flight . | . . . . Utility 2 | . . . 2 Device 2 | . . . 2 Storage . | . . . . Processor . | . . . . Hackware . | . . . . Protection . | . . . . Artifact . | . . . . Weapon 5 | . . 1 4 Energy Gun 3 | . . 1 2 Energy Cannon . | . . . . Ballistic Gun 2 | . . . 2 Ballistic Cannon . | . . . . Launcher . | . . . . Special Weapon . | . . . . Impact Weapon . | . . . . Slashing Weapon . | . . . . Piercing Weapon . | . . . . Special Melee Weapon . | . . . . Unidentified Prototypes . | . . . . Parts Lost 11 | . . . 11 Power 2 | . . . 2 Propulsion 5 | . . . 5 Utility 1 | . . . 1 Weapon 3 | . . . 3 Highest Loss Streak 10 | . . . 10 To Critical Strikes . | . . . . Average Slot Usage (%) 85 | . 81 88 85 Engine 10 | . 14 11 9 Treads 15 | . . 22 17 Leg 1 | . 7 . . Wheel 5 | . . . 8 Hover 12 | . 17 22 9 Device 5 | . . . 8 Storage 11 | . 14 11 11 Energy Gun 9 | . . 7 12 Ballistic Gun 13 | . 28 14 8 Naked Turns . | . . . . Heaviest Build 20 | 12 12 13 20 Greatest Support 26 | 20 20 12 26 Greatest Overweight (x) 3 | . 3 1 2 Average Overweight (x) . | . . . . Largest Inventory Capacity 8 | 8 8 8 8 Average Capacity 8 | 8 8 8 8 Most Carried 8 | 6 8 7 8 Average Carried 6 | 6 6 6 6 Final Capacity 8 | 8 8 8 8 Final Carried 8 | 6 8 7 3 Class Distribution -------------------- 100% | Mutant Dominant Class ---------------- Mutant | -10/Materials Mutant | -9/Materials Mutant | -9/Storage Resources | -11 -10 -9 -9 ----------- Run | Yrd Mat Mat Sto Matter Collected 369 | 200 38 52 79 Remotely . | . . . . Salvage Created 683 | . 180 52 451 Parts 53 | . 12 3 38 Haulers Intercepted . | . . . . Recyclers Shooed 1 | . . . 1 Parts Field Recycled . | . . . . Retrieved Matter . | . . . . Parts Self-Destructed . | . . . . Prevented . | . . . . Kills | -11 -10 -9 -9 ------- Run | Yrd Mat Mat Sto Combat Hostiles Destroyed 16 | . 4 1 11 Guns 16 | . 4 1 11 Classes Destroyed 8 | . 2 1 5 Builder 2 | . . . 2 Mechanic 1 | . . . 1 Operator 1 | . . . 1 Drone 1 | . . . 1 Watcher 1 | . 1 . . Swarmer 6 | . . . 6 Grunt 6 | . 4 . 2 Sentry 4 | . . 1 3 Best Kill Streak 5 | . 4 1 5 Combat Bots Only 4 | . 4 1 4 Max Kills in Single Turn 2 | . 1 1 2 Gunslinging . | . . . . Exploded . | . . . . Melee . | . . . . Uniques/NPCs Destroyed . | . . . . Combat | -11 -10 -9 -9 -------- Run | Yrd Mat Mat Sto Hostile Shots Fired 160 | . 8 8 144 Missed 32 | . 5 4 23 Damage Taken 1522 | . 31 55 1436 Core 420 | . 10 . 410 Absorbed by Shields . | . . . . Core Remaining (%) 98 | 100 96 . . Volleys Fired 67 | . 7 4 56 Largest 2 | . 2 2 2 Hottest 112 | . 40 76 112 Shots Fired 127 | . 14 8 105 Gun 127 | . 14 8 105 Cannon . | . . . . Launcher . | . . . . Special . | . . . . Kinetic 59 | . 14 5 40 Thermal 68 | . . 3 65 Explosive . | . . . . Electromagnetic . | . . . . Robot Hit Streak 11 | . 5 2 11 Robot Miss Streak 6 | . 1 2 6 Penetration Max . | . . . . Secondary Targets 1 | . . . 1 Max Gunslinging Chain 1 | . . . 1 Shots Hit Robots 67 | . 9 4 54 Core Hits 33 | . 8 2 23 Critical Kills . | . . . . Critical Parts Destroyed . | . . . . Critical Strikes 5 | . . . 5 Burn 5 | . . . 5 Melee Attacks . | . . . . Impact . | . . . . Slashing . | . . . . Piercing . | . . . . Sneak Attacks . | . . . . Combat Hostiles . | . . . . Follow-up Attacks . | . . . . Damage Inflicted 1038 | . 129 56 853 Guns 1038 | . 129 56 853 Cannons . | . . . . Explosions . | . . . . Melee . | . . . . Ramming . | . . . . Kinetic 484 | . 129 26 329 Thermal 554 | . . 30 524 Explosive . | . . . . Electromagnetic . | . . . . Impact . | . . . . Slashing . | . . . . Piercing . | . . . . Highest Corruption . | . . . . Average Corruption . | . . . . Corruption Purged . | . . . . Corruption Blocked . | . . . . Overload Shots . | . . . . Overflow Damage . | . . . . Projectiles . | . . . . Explosions . | . . . . Melee . | . . . . Knockbacks . | . . . . Impact . | . . . . Kinetic . | . . . . Secondary . | . . . . Self-Inflicted Damage . | . . . . Shots . | . . . . Rammed . | . . . . Targets Rammed . | . . . . Kicked . | . . . . Crushed . | . . . . Highest Temperature 423 | . 7 45 423 Average Temperature 155 | . 4 25 165 Received Heat Transfer 498 | . 18 36 444 Effects 2 | . . . 2 Shutdowns 1 | . . . 1 Short Circuit 1 | . . . 1 Siege Activations . | . . . . Robots Corrupted . | . . . . Combat Hostiles . | . . . . Parts Fried . | . . . . Impact Corruptions . | . . . . Robots Melted . | . . . . Combat Hostiles . | . . . . Parts Melted 10 | . . . 10 Heat Transferred 1778 | . . 74 1704 Parts Sabotaged . | . . . . Parts Stolen . | . . . . Parts Stripped . | . . . . Power Chain Reactions . | . . . . Alert | -11 -10 -9 -9 ------- Run | Yrd Mat Mat Sto Peak Influence 283 | . 152 108 283 Initial 63 | . . 63 45 Average 125 | . 52 73 156 Maximum Alert Level 1 | . . . 1 Low Security (%) 83 | 100 100 100 75 Level 1 16 | . . . 24 Level 2 . | . . . . Level 3 . | . . . . Level 4 . | . . . . Level 5 . | . . . . High Security . | . . . . Max Security . | . . . . Squads Dispatched 4 | . 2 1 1 Investigation 1 | . 1 . . Extermination . | . . . . Reinforcement 3 | . 1 1 1 Assault . | . . . . Garrison . | . . . . Intercept . | . . . . Searches Triggered . | . . . . Construction Impeded . | . . . . Haulers Reinforced . | . . . . Active Scanning Responses . | . . . . Cargo Convoy Interrupts . | . . . . Stealth | -11 -10 -9 -9 --------- Run | Yrd Mat Mat Sto Distress Signals 1 | . . . 1 Communications Jammed . | . . . . Distress Signals . | . . . . Times Spotted 31 | . 6 5 20 Peak Tracking Total 8 | . 2 4 8 Tactical Retreats 2 | . . . 2 Traps | -11 -10 -9 -9 ------- Run | Yrd Mat Mat Sto Traps Triggered 1 | . 1 . . Indirectly . | . . . . Trap Hack Attempts . | . . . . Triggered . | . . . . Disarmed . | . . . . Reprogrammed . | . . . . Reused . | . . . . Traps Extracted . | . . . . Installed . | . . . . Triggered . | . . . . Machines | -11 -10 -9 -9 ---------- Run | Yrd Mat Mat Sto Machines Disabled . | . . . . Max in Single Turn . | . . . . Machines Repaired . | . . . . Machines Dismantled . | . . . . Machines Sabotaged . | . . . . Overloaded Fab Kills . | . . . . Hacking | -11 -10 -9 -9 --------- Run | Yrd Mat Mat Sto Machines Accessed 1 | . . . 1 Terminals 1 | . . . 1 Fabricators . | . . . . Repair Stations . | . . . . Recycling Units . | . . . . Scanalyzers . | . . . . Garrison Access . | . . . . Total Hacks 1 | . . . 1 Successful 1 | . . . 1 Failed . | . . . . Catastrophic . | . . . . Database Lockouts . | . . . . Manual . | . . . . Terminals 1 | . . . 1 Fabricators . | . . . . Repair Stations . | . . . . Recycling Units . | . . . . Scanalyzers . | . . . . Garrison Access . | . . . . Terminal Hacks 1 | . . . 1 Open Door 1 | . . . 1 Fabricator Hacks . | . . . . Repair Station Hacks . | . . . . Recycling Unit Hacks . | . . . . Scanalyzer . | . . . . Garrison Access Hacks . | . . . . Unauthorized Hacks . | . . . . Terminals . | . . . . Fabricators . | . . . . Repair Stations . | . . . . Recycling Units . | . . . . Scanalyzers . | . . . . Garrison Access . | . . . . Data Cores Recovered . | . . . . Used . | . . . . Hacking Detections . | . . . . Full Trace Events . | . . . . Feedback Events . | . . . . Feedback Blocked . | . . . . Robot Schematics Acquired . | . . . . Robots Built . | . . . . Authchips . | . . . . Time . | . . . . Total Robot Build Rating . | . . . . Part Schematics Acquired . | . . . . Parts Built . | . . . . Authchips . | . . . . Time . | . . . . Total Part Build Rating . | . . . . Parts Repaired . | . . . . Time . | . . . . Parts Recycled . | . . . . Recycled Matter . | . . . . Retrieved Matter . | . . . . Retrieved Components . | . . . . Parts Scanalyzed . | . . . . Part Schematics Acquired . | . . . . Parts Damaged . | . . . . Bothacking | -11 -10 -9 -9 ------------ Run | Yrd Mat Mat Sto Used RIF Installer . | . . . . Robots Hacked . | . . . . Non-combat . | . . . . Combat . | . . . . Robot Hacks Applied . | . . . . Relay Couplers Released . | . . . . Fabnet Peak Effective % . | . . . . Robots Rewired . | . . . . Allies Hacked . | . . . . Hacks Repelled . | . . . . Allies | -11 -10 -9 -9 -------- Run | Yrd Mat Mat Sto Total Allies . | . . . . Largest Group . | . . . . Highest-Rated Group . | . . . . Highest-Rated Ally . | . . . . Total Orders 8 | . . . 8 EXPLORE 8 | . . . 8 Ally Attacks . | . . . . Total Damage . | . . . . Kills . | . . . . Allies Corrupted . | . . . . Allies Melted . | . . . . Intel | -11 -10 -9 -9 ------- Run | Yrd Mat Mat Sto Robot Analysis Total . | . . . . Derelict Logs Recovered . | . . . . Drone Launches 7 | . . . 7 Drone Recoveries 3 | . . . 3 Exploration | -11 -10 -9 -9 ------------- Run | Yrd Mat Mat Sto Turns Passed 442 | 3 80 60 299 Spaces Moved 191 | 3 68 33 87 Core 4 | . 1 . 3 Treads . | . . . . Legs 20 | 3 17 . . Wheels 58 | . . . 58 Hover 109 | . 50 33 26 Flight . | . . . . Fastest Speed 56 | 120 56 96 90 Average Speed 101 | 120 74 132 110 Slowest Speed 200 | 120 200 156 156 Overloaded Moves . | . . . . Propulsion Burnouts . | . . . . Robots Hopped . | . . . . Cave-ins Triggered . | . . . . Exploration Rate (%) 15 | 2 23 8 29 Regions Visited 3 Branch Regions 1 Pre-discovered Areas . | . . . . Known Exits Taken . | . . . . Unknown Exits Taken 3 | 1 1 1 . Scrap Searched . | . . . . Spaces Dug . | . . . . Terrain Destroyed . | . . . . Melee . | . . . . Projectile . | . . . . AOE . | . . . . Terrain Rammed . | . . . . Walls Destroyed . | . . . . Machines Disabled . | . . . . Actions | -11 -10 -9 -9 --------- Run | Yrd Mat Mat Sto Total 314 | 2 84 42 186 Wait 22 | . . . 22 Move 188 | 2 67 32 87 Hop . | . . . . Pick Up 11 | . 5 2 4 Fast Attach 1 | . . . 1 Attach 14 | . 2 3 9 Detach 1 | . . . 1 Swap 1 | . . . 1 Drop 7 | . 3 1 3 Fire 67 | . 7 4 56 Melee . | . . . . Ram . | . . . . Kick . | . . . . Crush . | . . . . Escape Stasis . | . . . . Rewire . | . . . . Trap . | . . . . Miscellaneous 2 | . . . 2 Route ------- -11/Scrapyard -10/Materials -9/Materials -9/Storage History --------- Turn | Location | Event 1 | -11/Scrapyard | Discovered new exit (range 0) 4 | -11/Scrapyard | Entered Materials 66 | -10/Materials | Discovered new exit (range 10) 84 | -10/Materials | Entered another Materials area 84 | -9/Materials | Evolved 2 slots: Propulsion x2 120 | -9/Materials | Discovered new exit (range 7) 144 | -9/Materials | Entered Storage 308 | -9/Storage | Build established: Mutant 400 | -9/Storage | Core integrity fell below 50% 409 | -9/Storage | Lost 3 allies 417 | -9/Storage | Core integrity fell below 20% 443 | -9/Storage | Destroyed by G-34 Mercenary with Small Laser Last Messages --------------- Defender. 00395_ Critical hit (Burn: +37). 00402_ Ion Engine destroyed. 00405_ Assault Rifle destroyed. 00408_ Heat Sink melted. 00408_ Y-45 Defender destroyed. 00410_ Y-45 Defender suffers critical hit (Burn). 00410_ Beam Rifle destroyed. 00416_ Critical hit (Burn: +37). 00423_ Y-45 Defender destroyed. 00427_ K-01 Serf collects debris. 00427_ Acquired Lgt. Treads. 00431_ K-01 Serf collects debris. 00434_ Assault Rifle destroyed. 00434_ Heat Sink melted. 00434_ Y-45 Defender destroyed. 00437_ K-01 Serf collects debris. 00438_ Acquired Lgt. Treads. 00442_ K-01 Serf collects debris. Map ----- +----------------------------------------------------+ | ??????????+ #??????????# %#????????? | | ??????????# #??????????# #????????? | | ??????????# #??????????# #????????? | | ??????????# +??????????# #????????? | | ??????????# #??????????# #????????? | | ??????????# #??????????# #????????? | | ??????????# #???###????# #????????? | | ??????????# #???# #????# #????????? | | ?????###??# ^ #???# #????#% ########## | | ???###T#### #####+###### # ? | | ??## # ## # # ? | | ??# T # ## """" # # """" # | | ???# / + + "??"" # # """" # | | ???#=$% # ##### "???"" + + """" # | | ???# ! # #???# ""???" # # """" # | | ???# # #???# ""??" # # # | | ???##/##### #???# """" #= # # | | ##### #???# #???# # # # | | #???# #???########### ## ####### | | #???# #???# # #?##?????? | | ##### #???# """k # #????????? | | #???# """"?" *# % #????????? | | ##### #???# "????"*!#=% #????????? | | ????# ##### "????"=%+*[ #????????? | | ????# + "?"""" [#*%=#????????? | | ????############# """ ag @# !=#????????? | | ????????????????# ! #%=!#????????? | | ????????????????###########!%|#????????? | | ??????????????????????????#[%=#????????? | | ??????????????????????????#=!=#????????? | | ????????????#############?# |!#????????? | | ????????????# # [#????????? | | ????????????# # #????????? | | ????????????# + +????????? | | ??????????????""""" """"" # #????????? | | ??????????????????" """"" # #????????? | | ????????????????????"""""?# #????????? | | ????????????????????#####?# #????????? | | ?????????????????????????? ????????? | | ?????????????????????????? #???????? | | ?????????????????????????? #???????? | | ?????????????????????????? #???????? | | ?????????????????????????? #???????? | | ??????????????????????????######???????? | | ???????????????????????????????????????? | | ???????????????????????????????????????? | | ???????????????????????????????????????? | | ???????????????????????????????????????? | | ???????????????????????????????????????? | | ???????????????????????????????????????? | +----------------------------------------------------+ Best States ------------- Heat Dissipation 28 Energy Generation 10 Energy Capacity 250 Matter Stores 300 Matter Capacity 300 Sight Range 16 Terrain Scan Density 10 Evasion (%) 55 Recoil Reduction 1 Item Schematics ----------------- None Robot Schematics ------------------ None Fabricated ------------ Nothing Alien Tech Used ----------------- None Achievements -------------- None Challenges ------------ None Game ------ Seed NodeForceThermoblaster Manual? 0 Play Time 00:07:21 Cumulative 145.3 hours Start 2024.05.02 @ 16:46:38 End 2024.05.02 @ 16:51:03 Sessions 1 Manual Loads 0 Difficulty Rogue Special Mode None Game No. 283 Rogue 283 Adventurer 0 Explorer 0 Win Type - Total 0 Types 0/0/0/0/0/0/0/0/0 Lore% 36 Gallery% 49 Achievement% 36 Wizard Run 0 Options --------- Layout 1 ASCII 0 Keyboard 0 Movement Mouse Keybinds 0 Fullscreen 1 Font 24/Smallcaps Map View 50x40 Zoom Use 0% Tactical HUD 1 Map Filters NONE Filters NONE Steam 1 RUN: 251a76ab-27ac-4716-87bc-4e355a50851d